lending/lending_fUSD_20240603
["ID","MTS","AMOUNT","RATE_DAILY","PERIOD"]
[328491213,1717443035335,-328.57548413,0.00033198,6]
[328491214,1717443035345,-5829.4704,0.00033198,2]
[328491215,1717443035355,-3098.9933,0.00033198,2]
[328491216,1717443035364,-1000.0,0.00033198,2]
[328491217,1717443035375,-1931.2626,0.00033198,2]
[328491218,1717443035385,-233.09827897,0.00033199,2]
[328491219,1717443035396,-328.57548411,0.00033199,6]
[328491220,1717443035407,-500.0,0.000332,2]
[328491221,1717443035419,-162.10824672,0.000332,5]
[328491222,1717443035429,-23492.75856493,0.000332,5]
[328491223,1717443035439,-166.40559633,0.000332,15]
[328491224,1717443035449,-175.62765228,0.000332,5]
[328491225,1717443035459,-1002.48,0.000332,2]
[328491226,1717443035469,-150.0,0.000332,7]
[328491227,1717443035480,-328.57548411,0.000332,6]
[328491228,1717443035491,-1410.26356607,0.000332,2]
[328491229,1717443035501,-1052.7,0.00033205,3]
[328491230,1717443035512,-4609.39263535,0.00033268,4]
[328491231,1717443035522,-152.48,0.00033289,2]
[328491232,1717443035533,-155.0,0.00033295,2]
[328491233,1717443035542,-512.05803811,0.00033297,13]
[328491234,1717443035552,-500.0,0.00033297,13]
[328491235,1717443035563,-531.04264242,0.00033297,13]
[328491236,1717443035573,-500.0,0.00033297,13]
[328491237,1717443035587,-500.0,0.00033297,13]
[328491238,1717443035596,-500.0,0.00033297,13]
[328491239,1717443035606,-500.0,0.00033297,13]
[328491240,1717443035615,-500.0,0.00033297,13]
[328491241,1717443035624,-728.15,0.00033297,13]
[328491242,1717443035634,-500.0,0.00033297,13]
[328491243,1717443035643,-500.0,0.00033297,13]
[328491244,1717443035653,-500.0,0.00033297,13]
[328491245,1717443035663,-500.0,0.00033297,13]
[328491246,1717443035673,-500.0,0.00033297,13]
[328491247,1717443035683,-578.18682605,0.00033297,13]
[328491248,1717443035692,-500.0,0.00033297,13]
[328491249,1717443035702,-500.0,0.00033297,13]
[328491250,1717443035712,-667.53,0.00033297,13]
[328491251,1717443035722,-566.94,0.00033297,13]
[328491252,1717443035732,-500.0,0.00033297,13]
[328491253,1717443035741,-500.0,0.00033297,13]
[328491254,1717443035751,-527.64,0.00033297,13]
[328491255,1717443035761,-500.0,0.00033297,13]
[328491256,1717443035771,-500.0,0.00033297,13]
[328491257,1717443035781,-534.93,0.00033297,13]
[328491258,1717443035791,-500.0,0.00033297,13]
[328491259,1717443035801,-500.0,0.00033297,13]
[328491260,1717443035810,-500.0,0.00033297,13]
[328491261,1717443035820,-500.0,0.00033297,13]
[328491262,1717443035832,-500.0,0.00033297,13]
[328491263,1717443035842,-500.0,0.00033297,13]
[328491264,1717443035852,-500.0,0.00033297,13]
[328491265,1717443035861,-500.0,0.00033297,13]
[328491266,1717443035871,-500.0,0.00033297,13]
[328491267,1717443035881,-500.0,0.00033297,13]
[328491268,1717443035891,-263.12420115,0.00033297,13]
[328491269,1717443035900,-500.0,0.00033297,13]
[328491270,1717443035910,-500.0,0.00033297,13]
[328491271,1717443035919,-500.0,0.00033297,13]
[328491272,1717443035929,-2288.98,0.00033297,13]
[328491273,1717443035938,-500.0,0.00033297,13]
[328491274,1717443035948,-500.0,0.00033297,13]
[328491275,1717443035958,-500.0,0.00033297,13]
[328491276,1717443035967,-500.0,0.00033297,13]
[328491277,1717443035978,-1533.12494649,0.00033298,2]
[328491278,1717443035988,-155.0,0.00033298,4]
[328491279,1717443035998,-481.15128798,0.00033298,4]
[328491280,1717443036008,-52968.72541263,0.00033298,4]
[328491281,1717443036018,-6254.36307268,0.00033298,4]
[328491282,1717443036032,-155.0,0.00033298,4]
[328491283,1717443036042,-1384.25618072,0.00033298,4]
[328491284,1717443036052,-530.68946993,0.00033298,4]
[328491285,1717443036062,-411.3026678,0.00033298,2]
[328491286,1717443036076,-268.37151533,0.00033298,4]
[328491287,1717443036086,-1217.60094334,0.00033298,4]
[328491288,1717443036096,-156.50520259,0.00033298,4]
[328491289,1717443036108,-326.7623735,0.00033298,4]
[328491290,1717443036119,-418.47813166,0.00033298,4]
[328491291,1717443036130,-620.36078575,0.00033298,4]
[328491292,1717443036140,-3097.54023704,0.00033298,4]
[328491293,1717443036149,-155.0,0.00033298,4]
[328491294,1717443036160,-155.0,0.00033298,4]
[328491295,1717443036171,-307.06708735,0.00033298,4]
[328491296,1717443036181,-266.98745558,0.00033298,4]
[328491297,1717443036191,-1305.05387914,0.00033298,4]
[328491298,1717443036202,-268.92082297,0.00033298,4]
[328491299,1717443036212,-3015.52277057,0.00033298,4]
[328491300,1717443036222,-168.31576886,0.00033298,4]
[328491301,1717443036233,-155.0,0.00033298,4]
[328491302,1717443036243,-166.3904041,0.00033298,4]
[328491303,1717443036254,-155.0,0.00033298,4]
[328491304,1717443036264,-1566.33170942,0.00033298,4]
[328491305,1717443036275,-429.30674478,0.00033298,4]
[328491306,1717443036285,-1533.70761321,0.00033298,4]
[328491307,1717443036295,-237.90651467,0.00033298,4]
[328491308,1717443036306,-241.30909122,0.00033298,4]
[328491309,1717443036316,-205.41184564,0.00033298,4]
[328491310,1717443036327,-155.0,0.00033298,4]
[328491311,1717443036337,-1275.80404584,0.00033298,4]
[328491312,1717443036347,-155.0,0.00033298,4]
[328491313,1717443036357,-4348.12812062,0.00033298,4]
[328491314,1717443036366,-234.83520174,0.00033298,4]
[328491315,1717443036376,-1260.2645142,0.00033298,4]
[328491316,1717443036387,-763.5490696,0.00033298,4]
[328491317,1717443036396,-155.0,0.00033298,4]
[328491318,1717443036407,-687.92420239,0.00033298,4]
[328491319,1717443036417,-310.0,0.00033298,4]
[328491320,1717443036427,-333.82252227,0.00033298,4]
[328491321,1717443036438,-2818.93117646,0.00033298,4]
[328491322,1717443036449,-282.59682608,0.00033298,4]
[328491323,1717443036459,-1000.0,0.00033298,4]
[328491324,1717443036470,-518.17441595,0.00033298,4]
[328491325,1717443036481,-1413.71069631,0.00033298,30]
[328491326,1717443036491,-365.09781292,0.00033298,4]
[328491327,1717443036502,-7534.4655871,0.00033298,4]
[328491328,1717443036513,-1918.38769886,0.00033298,2]
[328491329,1717443036523,-155.49613903,0.00033298,4]
[328491330,1717443036533,-2005.42062269,0.00033298,4]
[328491331,1717443036543,-4632.30233501,0.00033298,2]
[328491332,1717443036553,-4162.82948756,0.00033298,4]
[328491333,1717443036564,-150.0,0.00033298,2]
[328491334,1717443036576,-2366.03746575,0.00033298,4]
[328491335,1717443036586,-155.32666268,0.00033298,4]
[328491336,1717443036596,-155.50433289,0.00033298,4]
[328491337,1717443036606,-155.60940046,0.00033298,4]
[328491338,1717443036616,-1049.21880249,0.00033298,2]
[328491339,1717443036626,-3412.08366268,0.00033298,10]
[328491340,1717443036637,-822.97890125,0.00033298,2]
[328491341,1717443036649,-295.31883888,0.00033298,4]
[328491342,1717443036659,-155.0,0.00033298,4]
[328491343,1717443036670,-2227.75244418,0.00033298,14]
[328491344,1717443036680,-1369.14148522,0.00033298,4]
[328491345,1717443036690,-201.6612582,0.00033298,4]
[328491346,1717443036700,-500.0,0.00033298,13]
[328491347,1717443036711,-500.0,0.00033298,13]
[328491348,1717443036721,-728.15,0.00033298,13]
[328491349,1717443036731,-500.0,0.00033298,13]
[328491350,1717443036741,-500.0,0.00033298,13]
[328491351,1717443036750,-500.0,0.00033298,13]
[328491352,1717443036760,-500.0,0.00033298,13]
[328491353,1717443036770,-500.0,0.00033298,13]
[328491354,1717443036780,-500.0,0.00033298,13]
[328491355,1717443036790,-667.53,0.00033298,13]
[328491356,1717443036800,-566.94,0.00033298,13]
[328491357,1717443036810,-500.0,0.00033298,13]
[328491358,1717443036820,-500.0,0.00033298,13]
[328491359,1717443036831,-527.64,0.00033298,13]
[328491360,1717443036841,-500.0,0.00033298,13]
[328491361,1717443036850,-500.0,0.00033298,13]
[328491362,1717443036860,-534.93,0.00033298,13]
[328491363,1717443036869,-500.0,0.00033298,13]
[328491364,1717443036879,-500.0,0.00033298,13]
[328491365,1717443036889,-500.0,0.00033298,13]
[328491366,1717443036899,-500.0,0.00033298,13]
[328491367,1717443036909,-500.0,0.00033298,13]
[328491368,1717443036918,-500.0,0.00033298,13]
[328491369,1717443036930,-500.0,0.00033298,13]
[328491370,1717443036940,-500.0,0.00033298,13]
[328491371,1717443036950,-500.0,0.00033298,13]
[328491372,1717443036959,-500.0,0.00033298,13]
[328491373,1717443036969,-500.0,0.00033298,13]
[328491374,1717443036978,-2288.98,0.00033298,13]
[328491375,1717443036988,-500.0,0.00033298,13]
[328491376,1717443036998,-500.0,0.00033298,13]
[328491377,1717443037008,-500.0,0.00033298,13]
[328491378,1717443037017,-500.0,0.00033298,13]
[328491379,1717443037029,-31626.26070144,0.00033299,13]
[328491380,1717443037199,-80021.98532603,0.00033299,13]
[328491381,1717443037209,-3526.85094015,0.00033299,4]
[328491382,1717443037219,-300.19665809,0.00033299,4]
[328491383,1717443037228,-155.14565412,0.00033299,4]
[328491384,1717443037238,-199.38036039,0.00033299,4]
[328491385,1717443037248,-362.42615643,0.00033299,2]
[328491386,1717443037257,-200.0831035,0.00033299,2]
[328491387,1717443037267,-349.95878233,0.00033299,10]
[328491388,1717443037276,-363.01539118,0.00033299,2]
[328491389,1717443037286,-500.0,0.00033299,13]
[328491390,1717443037296,-500.0,0.00033299,13]
[328491391,1717443037306,-500.0,0.00033299,13]
[328491392,1717443037316,-500.0,0.00033299,13]
[328491393,1717443037325,-500.0,0.00033299,13]
[328491394,1717443037335,-500.0,0.00033299,13]
[328491395,1717443037344,-165.96420527,0.00033299,13]
[328491396,1717443037354,-500.0,0.00033299,13]
[328491397,1717443037363,-500.0,0.00033299,13]
[328491398,1717443037373,-500.0,0.00033299,13]
[328491399,1717443037382,-305.39189692,0.00033299,13]
[328491400,1717443037392,-155.0,0.00033299,2]
[328491401,1717443037401,-500.0,0.00033299,13]
[328491402,1717443037410,-500.0,0.00033299,13]
[328491403,1717443037419,-500.0,0.00033299,13]
[328491404,1717443037429,-500.0,0.00033299,13]
[328491405,1717443037438,-500.0,0.00033299,13]
[328491406,1717443037447,-500.0,0.00033299,13]
[328491407,1717443037457,-500.0,0.00033299,13]
[328491408,1717443037466,-500.0,0.00033299,13]
[328491409,1717443037476,-500.0,0.00033299,13]
[328491410,1717443037485,-500.0,0.00033299,13]
[328491411,1717443037495,-345.07159206,0.00033299,13]
[328491412,1717443037504,-361.52432461,0.00033299,7]
[328491413,1717443037514,-593.88478744,0.00033299,7]
[328491414,1717443037523,-378.3977362,0.00033299,7]
[328491415,1717443037532,-254.52205176,0.00033299,7]
[328491416,1717443037541,-500.0,0.00033299,13]
[328491417,1717443037551,-500.0,0.00033299,13]
[328491418,1717443037560,-595.29749643,0.00033299,13]
[328491419,1717443037569,-728.15,0.00033299,13]
[328491420,1717443037579,-728.15,0.00033299,13]
[328491421,1717443037588,-728.15,0.00033299,13]
[328491422,1717443037596,-728.15,0.00033299,13]
[328491423,1717443037605,-728.15,0.00033299,13]
[328491424,1717443037615,-728.15,0.00033299,13]
[328491425,1717443037625,-728.15,0.00033299,13]
[328491426,1717443037636,-728.15,0.00033299,13]
[328491427,1717443037645,-728.15,0.00033299,13]
[328491428,1717443037655,-728.15,0.00033299,13]
[328491429,1717443037664,-728.15,0.00033299,13]
[328491430,1717443037674,-728.15,0.00033299,13]
[328491431,1717443037683,-728.15,0.00033299,13]
[328491432,1717443037692,-728.15,0.00033299,13]
[328491433,1717443037702,-728.15,0.00033299,13]
[328491434,1717443037712,-728.15,0.00033299,13]
[328491435,1717443037722,-728.15,0.00033299,13]
[328491436,1717443037731,-728.15,0.00033299,13]
[328491437,1717443037741,-728.15,0.00033299,13]
[328491438,1717443037753,-728.18232715,0.00033299,13]
[328491439,1717443037762,-500.0,0.00033299,13]
[328491440,1717443037772,-500.0,0.00033299,13]
[328491441,1717443037782,-500.0,0.00033299,13]
[328491442,1717443037792,-500.0,0.00033299,13]
[328491443,1717443037801,-500.0,0.00033299,13]
[328491444,1717443037811,-163.48603726,0.00033299,13]
[328491445,1717443037820,-500.0,0.00033299,13]
[328491446,1717443037832,-500.0,0.00033299,13]
[328491447,1717443037841,-500.0,0.00033299,13]
[328491448,1717443037850,-500.0,0.00033299,13]
[328491449,1717443037859,-500.0,0.00033299,13]
[328491450,1717443037868,-500.0,0.00033299,13]
[328491451,1717443037877,-500.0,0.00033299,13]
[328491452,1717443037887,-437.17714147,0.00033299,13]
[328491453,1717443037896,-500.0,0.00033299,13]
[328491454,1717443037906,-500.0,0.00033299,13]
[328491455,1717443037915,-500.0,0.00033299,13]
[328491456,1717443037925,-500.0,0.00033299,13]
[328491457,1717443037935,-500.0,0.00033299,13]
[328491458,1717443037944,-500.0,0.00033299,13]
[328491459,1717443037953,-500.0,0.00033299,13]
[328491460,1717443037963,-500.0,0.00033299,13]
[328491461,1717443037974,-631.56109302,0.00033299,13]
[328491462,1717443037985,-500.0,0.00033299,13]
[328491463,1717443037994,-500.0,0.00033299,13]
[328491464,1717443038004,-500.0,0.00033299,13]
[328491465,1717443038013,-500.0,0.00033299,13]
[328491466,1717443038024,-500.0,0.00033299,13]
[328491467,1717443038037,-500.0,0.00033299,13]
[328491468,1717443038046,-500.0,0.00033299,13]
[328491469,1717443038056,-187.86209723,0.00033299,13]
[328491470,1717443038066,-500.0,0.00033299,13]
[328491471,1717443038080,-500.0,0.00033299,13]
[328491472,1717443038217,-500.0,0.00033299,13]
[328491473,1717443038228,-174.48432562,0.00033299,13]
[328491474,1717443038238,-500.0,0.00033299,13]
[328491475,1717443038248,-500.0,0.00033299,13]
[328491477,1717443038258,-500.0,0.00033299,13]
[328491479,1717443038267,-500.0,0.00033299,13]
[328491481,1717443038277,-500.0,0.00033299,13]
[328491482,1717443038287,-500.0,0.00033299,13]
[328491484,1717443038296,-260.94272587,0.00033299,13]
[328491486,1717443038306,-500.0,0.00033299,13]
[328491488,1717443038316,-500.0,0.00033299,13]
[328491490,1717443038326,-369.80888224,0.00033299,13]
[328491492,1717443038337,-667.53,0.00033299,13]
[328491494,1717443038346,-667.53,0.00033299,13]
[328491496,1717443038355,-667.53,0.00033299,13]
[328491497,1717443038365,-566.94,0.00033299,13]
[328491498,1717443038375,-667.53,0.00033299,13]
[328491499,1717443038384,-566.94,0.00033299,13]
[328491500,1717443038393,-667.53,0.00033299,13]
[328491501,1717443038402,-566.94,0.00033299,13]
[328491502,1717443038411,-667.53,0.00033299,13]
[328491503,1717443038420,-566.94,0.00033299,13]
[328491504,1717443038429,-667.53,0.00033299,13]
[328491505,1717443038438,-566.94,0.00033299,13]
[328491506,1717443038447,-667.53,0.00033299,13]
[328491507,1717443038456,-566.94,0.00033299,13]
[328491509,1717443038464,-667.53,0.00033299,13]
[328491511,1717443038473,-566.94,0.00033299,13]
[328491513,1717443038482,-667.53,0.00033299,13]
[328491515,1717443038491,-566.94,0.00033299,13]
[328491517,1717443038500,-667.53,0.00033299,13]
[328491519,1717443038509,-566.94,0.00033299,13]
[328491521,1717443038518,-667.53,0.00033299,13]
[328491523,1717443038528,-566.94,0.00033299,13]
[328491525,1717443038537,-667.53,0.00033299,13]
[328491527,1717443038546,-566.94,0.00033299,13]
[328491529,1717443038555,-667.53,0.00033299,13]
[328491531,1717443038564,-566.94,0.00033299,13]
[328491532,1717443038573,-667.53,0.00033299,13]
[328491534,1717443038583,-566.94,0.00033299,13]
[328491536,1717443038593,-667.53,0.00033299,13]
[328491538,1717443038603,-566.94,0.00033299,13]
[328491540,1717443038612,-667.53,0.00033299,13]
[328491543,1717443038623,-566.94,0.00033299,13]
[328491545,1717443038633,-667.53,0.00033299,13]
[328491547,1717443038642,-566.94,0.00033299,13]
[328491549,1717443038652,-667.53,0.00033299,13]
[328491551,1717443038661,-566.94,0.00033299,13]
[328491553,1717443038670,-667.7481622,0.00033299,13]
[328491555,1717443038680,-566.94,0.00033299,13]
[328491556,1717443038690,-566.94,0.00033299,13]
[328491559,1717443038699,-567.00642401,0.00033299,13]
[328491560,1717443038708,-371.37956463,0.00033299,13]
[328491562,1717443038717,-500.0,0.00033299,13]
[328491564,1717443038726,-500.0,0.00033299,13]
[328491565,1717443038735,-500.0,0.00033299,13]
[328491566,1717443038744,-500.0,0.00033299,13]
[328491567,1717443038753,-500.0,0.00033299,13]
[328491568,1717443038764,-500.0,0.00033299,13]
[328491569,1717443038773,-527.64,0.00033299,13]
[328491570,1717443038782,-500.0,0.00033299,13]
[328491571,1717443038791,-527.64,0.00033299,13]
[328491572,1717443038800,-500.0,0.00033299,13]
[328491573,1717443038810,-527.64,0.00033299,13]
[328491574,1717443038819,-500.0,0.00033299,13]
[328491575,1717443038830,-527.64,0.00033299,13]
[328491576,1717443038839,-527.64,0.00033299,13]
[328491577,1717443038849,-500.0,0.00033299,13]
[328491578,1717443038858,-527.64,0.00033299,13]
[328491579,1717443038868,-196.20544219,0.00033299,13]
[328491580,1717443038877,-527.64,0.00033299,13]
[328491581,1717443038886,-527.64,0.00033299,13]
[328491582,1717443038896,-527.64,0.00033299,13]
[328491583,1717443038905,-527.64,0.00033299,13]
[328491584,1717443038914,-527.64,0.00033299,13]
[328491585,1717443038924,-527.64,0.00033299,13]
[328491586,1717443038933,-527.64,0.00033299,13]
[328491587,1717443038942,-527.64,0.00033299,13]
[328491588,1717443038952,-527.64,0.00033299,13]
[328491589,1717443038961,-527.64,0.00033299,13]
[328491590,1717443038971,-527.64,0.00033299,13]
[328491591,1717443038980,-527.64,0.00033299,13]
[328491592,1717443038990,-527.64,0.00033299,13]
[328491593,1717443039000,-527.82,0.00033299,13]
[328491594,1717443039009,-500.0,0.00033299,13]
[328491595,1717443039018,-500.0,0.00033299,13]
[328491596,1717443039032,-500.0,0.00033299,13]
[328491597,1717443039042,-500.0,0.00033299,13]
[328491598,1717443039052,-565.06014534,0.00033299,13]
[328491600,1717443039063,-158.2601474,0.00033299,13]
[328491602,1717443039074,-534.93,0.00033299,13]
[328491604,1717443039085,-500.0,0.00033299,13]
[328491606,1717443039095,-534.93,0.00033299,13]
[328491608,1717443039107,-500.0,0.00033299,13]
[328491610,1717443039118,-534.93,0.00033299,13]
[328491612,1717443039128,-534.93,0.00033299,13]
[328491614,1717443039138,-500.0,0.00033299,13]
[328491616,1717443039148,-534.93,0.00033299,13]
[328491618,1717443039158,-500.0,0.00033299,13]
[328491620,1717443039169,-534.93,0.00033299,13]
[328491622,1717443039180,-500.0,0.00033299,13]
[328491624,1717443039190,-534.93,0.00033299,13]
[328491626,1717443039200,-500.0,0.00033299,13]
[328491628,1717443039210,-534.93,0.00033299,13]
[328491630,1717443039220,-500.0,0.00033299,13]
[328491632,1717443039231,-534.93,0.00033299,13]
[328491634,1717443039242,-500.0,0.00033299,13]
[328491636,1717443039252,-534.93,0.00033299,13]
[328491638,1717443039263,-500.0,0.00033299,13]
[328491639,1717443039272,-534.93,0.00033299,13]
[328491640,1717443039282,-500.0,0.00033299,13]
[328491641,1717443039293,-534.93,0.00033299,13]
[328491642,1717443039304,-500.0,0.00033299,13]
[328491643,1717443039315,-534.93,0.00033299,13]
[328491644,1717443039325,-534.93,0.00033299,13]
[328491645,1717443039336,-534.93,0.00033299,13]
[328491646,1717443039346,-374.2851,0.00033299,13]
[328491647,1717443039357,-534.93,0.00033299,13]
[328491648,1717443039367,-500.0,0.00033299,13]
[328491649,1717443039377,-534.93,0.00033299,13]
[328491650,1717443039388,-500.0,0.00033299,13]
[328491651,1717443039397,-534.93,0.00033299,13]
[328491652,1717443039408,-500.0,0.00033299,13]
[328491653,1717443039418,-534.93,0.00033299,13]
[328491654,1717443039428,-500.0,0.00033299,13]
[328491655,1717443039438,-500.0,0.00033299,13]
[328491656,1717443039448,-500.0,0.00033299,13]
[328491657,1717443039457,-500.0,0.00033299,13]
[328491658,1717443039467,-534.94976341,0.00033299,13]
[328491659,1717443039478,-500.0,0.00033299,13]
[328491660,1717443039488,-500.0,0.00033299,13]
[328491661,1717443039499,-328.77484398,0.00033299,13]
[328491662,1717443039511,-500.0,0.00033299,13]
[328491663,1717443039520,-500.0,0.00033299,13]
[328491664,1717443039530,-500.0,0.00033299,13]
[328491665,1717443039540,-151.47227285,0.00033299,13]
[328491666,1717443039550,-500.0,0.00033299,13]
[328491667,1717443039559,-500.0,0.00033299,13]
[328491668,1717443039569,-500.0,0.00033299,13]
[328491669,1717443039578,-500.0,0.00033299,13]
[328491670,1717443039590,-500.0,0.00033299,13]
[328491671,1717443039599,-500.0,0.00033299,13]
[328491672,1717443039609,-500.0,0.00033299,13]
[328491673,1717443039618,-500.0,0.00033299,13]
[328491674,1717443039628,-500.0,0.00033299,13]
[328491675,1717443039637,-448.80340259,0.00033299,13]
[328491676,1717443039646,-500.0,0.00033299,13]
[328491677,1717443039656,-500.0,0.00033299,13]
[328491678,1717443039665,-500.0,0.00033299,13]
[328491679,1717443039675,-500.0,0.00033299,13]
[328491680,1717443039684,-500.0,0.00033299,13]
[328491681,1717443039695,-500.0,0.00033299,13]
[328491682,1717443039706,-500.0,0.00033299,13]
[328491683,1717443039718,-500.0,0.00033299,13]
[328491684,1717443039729,-500.0,0.00033299,13]
[328491685,1717443039740,-500.0,0.00033299,13]
[328491686,1717443039751,-500.0,0.00033299,13]
[328491687,1717443039762,-500.0,0.00033299,13]
[328491688,1717443039772,-500.0,0.00033299,13]
[328491689,1717443039782,-500.0,0.00033299,13]
[328491690,1717443039792,-500.0,0.00033299,13]
[328491691,1717443039801,-500.0,0.00033299,13]
[328491692,1717443039811,-500.0,0.00033299,13]
[328491693,1717443039821,-217.87580034,0.00033299,13]
[328491694,1717443039831,-500.0,0.00033299,13]
[328491695,1717443039840,-500.0,0.00033299,13]
[328491696,1717443039850,-500.0,0.00033299,13]
[328491697,1717443039859,-396.52195662,0.00033299,13]
[328491698,1717443039868,-500.0,0.00033299,13]
[328491699,1717443039878,-429.28896336,0.00033299,13]
[328491700,1717443039887,-500.0,0.00033299,13]
[328491701,1717443039897,-500.0,0.00033299,13]
[328491702,1717443039906,-445.9005897,0.00033299,13]
[328491703,1717443039916,-500.0,0.00033299,13]
[328491704,1717443039925,-500.0,0.00033299,13]
[328491705,1717443039935,-500.0,0.00033299,13]
[328491706,1717443039945,-500.0,0.00033299,13]
[328491707,1717443039955,-500.0,0.00033299,13]
[328491708,1717443039965,-163.97,0.00033299,13]
[328491709,1717443039974,-500.0,0.00033299,13]
[328491710,1717443039984,-211.76141902,0.00033299,13]
[328491711,1717443039994,-500.0,0.00033299,13]
[328491712,1717443040003,-500.0,0.00033299,13]
[328491713,1717443040013,-500.0,0.00033299,13]
[328491714,1717443040023,-150.95484488,0.00033299,13]
[328491715,1717443040036,-500.0,0.00033299,13]
[328491716,1717443040046,-500.0,0.00033299,13]
[328491717,1717443040056,-500.0,0.00033299,13]
[328491718,1717443040066,-500.0,0.00033299,13]
[328491719,1717443040077,-500.0,0.00033299,13]
[328491720,1717443040088,-500.0,0.00033299,13]
[328491721,1717443040098,-500.0,0.00033299,13]
[328491722,1717443040109,-318.25604468,0.00033299,13]
[328491723,1717443040120,-500.0,0.00033299,13]
[328491724,1717443040130,-619.21707874,0.00033299,13]
[328491725,1717443040140,-2288.98,0.00033299,13]
[328491726,1717443040150,-2288.98,0.00033299,13]
[328491727,1717443040160,-2288.98,0.00033299,13]
[328491728,1717443040170,-2288.98,0.00033299,13]
[328491729,1717443040180,-2288.98,0.00033299,13]
[328491730,1717443040190,-2288.98,0.00033299,13]
[328491731,1717443040200,-500.0,0.00033299,13]
[328491732,1717443040209,-2288.98,0.00033299,13]
[328491733,1717443040219,-500.0,0.00033299,13]
[328491734,1717443040229,-500.0,0.00033299,13]
[328491735,1717443040239,-500.0,0.00033299,13]
[328491736,1717443040249,-2288.98,0.00033299,13]
[328491737,1717443040259,-500.0,0.00033299,13]
[328491738,1717443040268,-500.0,0.00033299,13]
[328491739,1717443040279,-2288.98,0.00033299,13]
[328491740,1717443040289,-637.51706801,0.00033299,13]
[328491741,1717443040299,-2288.98,0.00033299,13]
[328491742,1717443040309,-2288.98,0.00033299,13]
[328491743,1717443040324,-2288.98,0.00033299,13]
[328491744,1717443040335,-2288.98,0.00033299,13]
[328491745,1717443040345,-2288.98,0.00033299,13]
[328491746,1717443040356,-2288.98,0.00033299,13]
[328491747,1717443040365,-2288.98,0.00033299,13]
[328491748,1717443040375,-2288.98,0.00033299,13]
[328491749,1717443040386,-500.0,0.00033299,13]
[328491750,1717443040396,-500.0,0.00033299,13]
[328491751,1717443040407,-2288.98,0.00033299,13]
[328491752,1717443040417,-500.0,0.00033299,13]
[328491754,1717443040427,-2288.98,0.00033299,13]
[328491756,1717443040436,-612.58968678,0.00033299,13]
[328491758,1717443040447,-2289.21028654,0.00033299,13]
[328491760,1717443040457,-500.0,0.00033299,13]
[328491761,1717443040467,-500.0,0.00033299,13]
[328491762,1717443040477,-500.0,0.00033299,13]
[328491763,1717443040487,-470.3665572,0.00033299,13]
[328491764,1717443040497,-150.0,0.00033299,7]
[328491765,1717443040510,-150.0,0.00033299,7]
[328491766,1717443040520,-500.0,0.00033299,13]
[328491767,1717443040530,-243.68151353,0.00033299,13]
[328491768,1717443040539,-1001.01692,0.00033299,2]
[328491769,1717443040549,-1000.02251606,0.000333,5]
[328491770,1717443040559,-508675.21792489,0.000333,5]
[328491771,1717443040578,-74510.27183782,0.000333,5]
[328491772,1717443040785,-3818.48700272,0.00017255,2]
[328491773,1717443040796,-263.8,0.00017255,2]
[328491774,1717443040812,-464.51322832,0.00017255,2]